fUSD/lending_fUSD_20250125
["ID","MTS","AMOUNT","RATE_DAILY","PERIOD"]
[350322647,1737793846585,-500.0,0.00019708,2]
[350322648,1737793846594,-500.0,0.00019708,2]
[350322649,1737793846604,-1188.68,0.00019708,2]
[350322650,1737793846613,-500.0,0.00019708,2]
[350322651,1737793846623,-500.0,0.00019708,2]
[350322652,1737793846633,-500.0,0.00019708,2]
[350322653,1737793846643,-536.11,0.00019708,2]
[350322654,1737793846652,-500.0,0.00019708,2]
[350322655,1737793846661,-1128.49,0.00019708,2]
[350322656,1737793846670,-500.0,0.00019708,2]
[350322657,1737793846680,-500.0,0.00019708,2]
[350322658,1737793846690,-500.0,0.00019708,2]
[350322659,1737793846700,-1000.0,0.00019708,2]
[350322660,1737793846709,-857.04,0.00019708,2]
[350322661,1737793846719,-500.0,0.00019708,2]
[350322662,1737793846728,-500.0,0.00019708,2]
[350322663,1737793846738,-500.0,0.00019708,2]
[350322664,1737793846749,-1553.92,0.00019708,2]
[350322665,1737793846758,-405.38590909,0.00019708,2]
[350322666,1737793846769,-500.0,0.00019708,2]
[350322667,1737793846779,-500.0,0.00019713,2]
[350322668,1737793846789,-500.0,0.00019713,2]
[350322669,1737793846798,-500.0,0.00019713,2]
[350322670,1737793846807,-156.30572689,0.00019713,2]
[350322671,1737793846816,-500.0,0.00019713,2]
[350322672,1737793846826,-500.0,0.00019713,2]
[350322673,1737793846835,-151.0,0.00019713,2]
[350322674,1737793846844,-367.48048048,0.00019713,2]
[350322675,1737793846854,-500.0,0.00019713,2]
[350322676,1737793846865,-500.0,0.00019713,2]
[350322677,1737793846875,-500.0,0.00019713,2]
[350322678,1737793846884,-640.74,0.00019713,2]
[350322679,1737793846894,-500.0,0.00019713,2]
[350322680,1737793846904,-353.60577155,0.00019713,2]
[350322681,1737793846914,-500.0,0.00019713,2]
[350322682,1737793846924,-224.0,0.00019713,2]
[350322683,1737793846933,-500.0,0.00019713,2]
[350322684,1737793846942,-369.01229466,0.00019713,2]
[350322685,1737793846951,-1000.0,0.00019714,2]
[350322686,1737793846961,-150.0,0.0001973,2]
[350322687,1737793846970,-151.0,0.00019738,2]
[350322688,1737793846979,-240.32436369,0.00019741,2]
[350322689,1737793846988,-151.21842888,0.00019743,2]
[350322690,1737793846998,-150.34643673,0.00019743,2]
[350322691,1737793847008,-150.0,0.00019743,2]
[350322692,1737793847019,-150.0,0.00019743,2]
[350322693,1737793847029,-156.17335702,0.00019743,2]
[350322694,1737793847038,-150.0,0.00019745,2]
[350322695,1737793847047,-1000.0,0.00019753,2]
[350322696,1737793847056,-150.0,0.00019754,2]
[350322697,1737793847066,-186.950326,0.0001976,2]
[350322698,1737793847075,-150.0,0.00019762,2]
[350322699,1737793847083,-150.0,0.00019765,2]
[350322700,1737793847093,-150.0,0.00019766,2]
[350322701,1737793847102,-13932.36947401,0.00019766,2]
[350322702,1737793847111,-1018.8361527,0.00019767,2]
[350322703,1737793847120,-150.0,0.00019768,2]
[350322704,1737793847129,-150.0,0.0001977,2]
[350322705,1737793847138,-150.0,0.00019771,2]
[350322706,1737793847148,-150.0,0.00019772,2]
[350322707,1737793847157,-150.0,0.00019774,2]
[350322708,1737793847166,-279.935665,0.0001978,2]
[350322709,1737793847175,-279.935665,0.0001978,2]
[350322710,1737793847184,-151.0,0.0001978,2]
[350322711,1737793847193,-150.0,0.00019785,2]
[350322712,1737793847202,-500.0,0.00019787,2]
[350322713,1737793847212,-500.0,0.00019787,2]
[350322714,1737793847221,-500.0,0.00019787,2]
[350322715,1737793847230,-500.0,0.00019787,2]
[350322716,1737793847239,-500.0,0.00019787,2]
[350322717,1737793847248,-577.96709855,0.00019787,2]
[350322718,1737793847258,-500.0,0.00019787,2]
[350322719,1737793847269,-500.0,0.00019787,2]
[350322720,1737793847278,-500.0,0.00019787,2]
[350322721,1737793847288,-500.0,0.00019787,2]
[350322722,1737793847299,-500.0,0.00019787,2]
[350322723,1737793847309,-500.0,0.00019787,2]
[350322724,1737793847318,-500.0,0.00019787,2]
[350322725,1737793847327,-500.0,0.00019787,2]
[350322726,1737793847337,-151.0,0.00019787,2]
[350322727,1737793847349,-5955.90450242,0.00019788,2]
[350322728,1737793847361,-246.79375488,0.00019798,2]
[350322729,1737793847370,-672.44042542,0.00019799,2]
[350322730,1737793847380,-779.17,0.00019799,2]
[350322731,1737793847389,-40012.92276854,0.000198,2]
[350322732,1737793847399,-174.62231661,0.000198,2]
[350322733,1737793847411,-164.99159,0.000198,2]
[350322734,1737793847421,-2486.34149658,0.000198,2]
[350322735,1737793847430,-4000.0,0.000198,7]
[350322736,1737793847439,-1000.0,0.00019801,2]
[350322737,1737793847449,-150.0,0.00019802,2]
[350322738,1737793847458,-150.0,0.00019803,2]
[350322739,1737793847470,-151.0,0.00019807,2]
[350322740,1737793847479,-500.0,0.00019808,2]
[350322741,1737793847489,-500.0,0.00019808,2]
[350322742,1737793847497,-500.0,0.00019808,2]
[350322743,1737793847507,-500.0,0.00019808,2]
[350322744,1737793847517,-1168.12,0.00019808,2]
[350322745,1737793847526,-336.132456,0.00019808,2]
[350322746,1737793847535,-500.0,0.00019808,2]
[350322747,1737793847545,-500.0,0.00019808,2]
[350322748,1737793847554,-500.0,0.00019808,2]
[350322749,1737793847562,-500.0,0.00019808,2]
[350322750,1737793847572,-498.192715,0.00019808,2]
[350322751,1737793847581,-739.17,0.00019808,2]
[350322752,1737793847590,-1292.75,0.00019808,2]
[350322753,1737793847599,-500.0,0.00019808,2]
[350322754,1737793847609,-948.33,0.00019808,2]
[350322755,1737793847618,-1171.25,0.00019808,2]
[350322756,1737793847627,-500.0,0.00019808,2]
[350322757,1737793847636,-1234.34,0.00019808,2]
[350322758,1737793847645,-500.0,0.00019808,2]
[350322759,1737793847654,-500.0,0.00019808,2]
[350322760,1737793847663,-500.0,0.00019808,2]
[350322761,1737793847673,-155.843267,0.00019808,2]
[350322762,1737793847682,-500.0,0.00019808,2]
[350322763,1737793847691,-156.873209,0.00019808,2]
[350322764,1737793847700,-500.0,0.00019808,2]
[350322765,1737793847710,-778.87,0.00019808,2]
[350322766,1737793847720,-500.0,0.00019808,2]
[350322767,1737793847729,-722.27,0.00019808,2]
[350322768,1737793847738,-166.15062,0.00019808,2]
[350322769,1737793847748,-1398.0,0.00019808,2]
[350322770,1737793847757,-1004.94,0.00019808,2]
[350322771,1737793847768,-307.759024,0.00019808,2]
[350322772,1737793847778,-2555.36,0.00019808,2]
[350322773,1737793847787,-1005.12,0.00019808,2]
[350322774,1737793847797,-872.67,0.0001981,2]
[350322775,1737793847807,-500.0,0.0001981,2]
[350322776,1737793847817,-500.0,0.0001981,2]
[350322777,1737793847826,-769.26,0.0001981,2]
[350322778,1737793847837,-680.05,0.0001981,2]
[350322779,1737793847846,-394.86,0.0001981,2]
[350322780,1737793847856,-1210.79,0.0001981,2]
[350322781,1737793847865,-500.0,0.0001981,2]
[350322782,1737793847875,-500.0,0.0001981,2]
[350322783,1737793847884,-910.41,0.0001981,2]
[350322784,1737793847893,-596.65,0.0001981,2]
[350322785,1737793847904,-500.0,0.0001981,2]
[350322786,1737793847913,-150.0,0.00019818,2]
[350322787,1737793847923,-1000.0,0.00019821,2]
[350322788,1737793847932,-150.0,0.00019821,2]
[350322789,1737793847942,-150.0,0.0001983,2]
[350322790,1737793847951,-150.0,0.00019832,2]
[350322791,1737793847960,-279.935665,0.00019833,2]
[350322792,1737793847970,-279.935665,0.00019833,2]
[350322793,1737793847979,-151.0,0.00019833,2]
[350322794,1737793847988,-13932.36947401,0.00019833,2]
[350322795,1737793847997,-10154.36876538,0.00019838,2]
[350322796,1737793848006,-151.0,0.00019838,2]
[350322797,1737793848017,-14211.6663769,0.00019844,3]
[350322798,1737793848026,-2486.34149658,0.00019844,2]
[350322799,1737793848035,-500.0,0.00019844,2]
[350322800,1737793848045,-841.36,0.00019844,2]
[350322801,1737793848054,-947.22,0.00019844,2]
[350322802,1737793848063,-849.7,0.00019844,2]
[350322803,1737793848073,-500.0,0.00019844,2]
[350322804,1737793848082,-1522.2,0.00019844,2]
[350322805,1737793848091,-500.0,0.00019844,2]
[350322806,1737793848100,-500.0,0.00019844,2]
[350322807,1737793848110,-1151.59,0.00019844,2]
[350322808,1737793848119,-500.0,0.00019844,2]
[350322809,1737793848128,-1773.75,0.00019844,2]
[350322810,1737793848137,-953.36,0.00019844,2]
[350322811,1737793848146,-500.0,0.00019845,2]
[350322812,1737793848155,-500.0,0.00019845,2]
[350322813,1737793848166,-500.0,0.00019845,2]
[350322814,1737793848175,-500.0,0.00019845,2]
[350322815,1737793848184,-500.0,0.00019845,2]
[350322816,1737793848193,-500.0,0.00019845,2]
[350322817,1737793848202,-500.0,0.00019845,2]
[350322818,1737793848211,-500.0,0.00019845,2]
[350322819,1737793848221,-500.0,0.00019845,2]
[350322820,1737793848230,-500.0,0.00019845,2]
[350322821,1737793848239,-438.41152819,0.00019845,2]
[350322822,1737793848249,-500.0,0.00019845,2]
[350322823,1737793848258,-500.0,0.00019845,2]
[350322824,1737793848267,-500.0,0.00019845,2]
[350322825,1737793848277,-500.0,0.00019845,2]
[350322826,1737793848287,-500.0,0.00019845,2]
[350322827,1737793848297,-500.0,0.00019845,2]
[350322828,1737793848306,-500.0,0.00019845,2]
[350322829,1737793848315,-500.0,0.00019845,2]
[350322830,1737793848325,-500.0,0.00019845,2]
[350322831,1737793848334,-500.0,0.00019845,2]
[350322832,1737793848344,-500.0,0.00019845,2]
[350322833,1737793848357,-500.0,0.00019845,2]
[350322834,1737793848367,-500.0,0.00019845,2]
[350322835,1737793848376,-500.0,0.00019845,2]
[350322836,1737793848385,-500.0,0.00019845,2]
[350322837,1737793848396,-604.54,0.00019845,2]
[350322838,1737793848405,-500.0,0.00019845,2]
[350322839,1737793848415,-500.0,0.00019845,2]
[350322840,1737793848424,-500.0,0.00019845,2]
[350322841,1737793848433,-500.0,0.00019845,2]
[350322842,1737793848443,-500.0,0.00019845,2]
[350322843,1737793848452,-500.0,0.00019845,2]
[350322844,1737793848461,-500.0,0.00019845,2]
[350322845,1737793848470,-765.05,0.00019845,2]
[350322846,1737793848479,-500.0,0.00019845,2]
[350322847,1737793848489,-500.0,0.00019845,2]
[350322848,1737793848498,-500.0,0.00019845,2]
[350322849,1737793848507,-500.0,0.00019845,2]
[350322850,1737793848518,-500.0,0.00019845,2]
[350322851,1737793848528,-500.0,0.00019845,2]
[350322852,1737793848537,-500.0,0.00019845,2]
[350322853,1737793848548,-500.0,0.00019845,2]
[350322854,1737793848557,-500.0,0.00019845,2]
[350322855,1737793848566,-500.0,0.00019845,2]
[350322856,1737793848575,-500.0,0.00019845,2]
[350322857,1737793848584,-500.0,0.00019845,2]
[350322858,1737793848594,-500.0,0.00019845,2]
[350322859,1737793848604,-500.0,0.00019845,2]
[350322860,1737793848613,-500.0,0.00019845,2]
[350322861,1737793848622,-500.0,0.00019845,2]
[350322862,1737793848632,-500.0,0.00019845,2]
[350322863,1737793848640,-500.0,0.00019845,2]
[350322864,1737793848650,-999.0,0.00019845,2]
[350322865,1737793848659,-500.0,0.00019845,2]
[350322866,1737793848669,-1971.43,0.00019845,2]
[350322867,1737793848678,-500.0,0.00019845,2]
[350322868,1737793848688,-500.0,0.00019845,2]
[350322869,1737793848815,-500.0,0.00019845,2]
[350322870,1737793848826,-500.0,0.00019845,2]
[350322871,1737793848835,-500.0,0.00019845,2]
[350322872,1737793848845,-1188.68,0.00019845,2]
[350322873,1737793848854,-500.0,0.00019845,2]
[350322874,1737793848864,-500.0,0.00019845,2]
[350322875,1737793848873,-500.0,0.00019845,2]
[350322876,1737793848883,-536.11,0.00019845,2]
[350322877,1737793848892,-500.0,0.00019845,2]
[350322878,1737793848902,-1128.49,0.00019845,2]
[350322879,1737793848912,-500.0,0.00019845,2]
[350322880,1737793848922,-500.0,0.00019845,2]
[350322881,1737793848932,-500.0,0.00019845,2]
[350322882,1737793848942,-1000.0,0.00019845,2]
[350322883,1737793848952,-857.04,0.00019845,2]
[350322884,1737793848962,-500.0,0.00019845,2]
[350322885,1737793848971,-500.0,0.00019845,2]
[350322886,1737793848982,-500.0,0.00019845,2]
[350322887,1737793848991,-1553.92,0.00019845,2]
[350322888,1737793849001,-500.0,0.00019845,2]
[350322889,1737793849011,-500.0,0.0001985,2]
[350322890,1737793849023,-500.0,0.0001985,2]
[350322891,1737793849032,-500.0,0.0001985,2]
[350322892,1737793849042,-500.0,0.0001985,2]
[350322893,1737793849051,-355.32080685,0.0001985,2]
[350322894,1737793849061,-640.74,0.0001985,2]
[350322895,1737793849071,-500.0,0.0001985,2]
[350322896,1737793849080,-500.0,0.0001985,2]
[350322897,1737793849089,-74968.61728753,0.0001987,2]
[350322898,1737793849098,-267.713642,0.0001987,2]
[350322899,1737793849110,-279.935665,0.0001987,2]
[350322900,1737793849119,-279.935665,0.0001987,2]
[350322901,1737793849128,-222.477464,0.0001987,2]
[350322902,1737793849139,-2486.34149658,0.00019888,2]
[350322903,1737793849148,-779.17,0.00019899,2]
[350322904,1737793849158,-5513.42827001,0.000199,7]
[350322905,1737793849169,-11977.27665986,0.000199,2]
[350322906,1737793849179,-10154.36876538,0.000199,2]
[350322907,1737793849191,-13932.36947401,0.000199,2]
[350322908,1737793849200,-800.0,0.000199,7]
[350322909,1737793849209,-725.42771793,0.000199,2]
[350322910,1737793849220,-1288.79994287,0.000199,2]
[350322911,1737793849229,-500.0,0.00019924,2]
[350322912,1737793849239,-500.0,0.00019924,2]
[350322913,1737793849248,-500.0,0.00019924,2]
[350322914,1737793849258,-500.0,0.00019924,2]
[350322915,1737793849269,-500.0,0.00019924,2]
[350322916,1737793849279,-500.0,0.00019924,2]
[350322917,1737793849288,-528.2,0.00019924,2]
[350322918,1737793849298,-500.0,0.00019924,2]
[350322919,1737793849307,-500.0,0.00019924,2]
[350322920,1737793849317,-500.0,0.00019924,2]
[350322921,1737793849328,-500.0,0.00019924,2]
[350322922,1737793849337,-500.0,0.00019924,2]
[350322923,1737793849347,-500.0,0.00019924,2]
[350322924,1737793849361,-279.935665,0.00019942,2]
[350322925,1737793849371,-279.935665,0.00019942,2]
[350322926,1737793849380,-569.255,0.00019942,2]
[350322927,1737793849390,-699.355,0.00019942,2]
[350322928,1737793849400,-150.43,0.00019942,2]
[350322929,1737793849410,-1865.0,0.00019942,2]
[350322930,1737793849419,-1268.152,0.00019942,2]
[350322931,1737793849431,-2949.0,0.00019942,2]
[350322932,1737793849441,-916.305,0.00019942,2]
[350322933,1737793849450,-863.0,0.00019942,2]
[350322934,1737793849460,-4000.832,0.00019942,2]
[350322935,1737793849469,-539.936,0.00019942,2]
[350322936,1737793849478,-150.0,0.00019942,2]
[350322937,1737793849488,-500.0,0.00019945,2]
[350322938,1737793849497,-500.0,0.00019945,2]
[350322939,1737793849507,-391.96409953,0.00019945,2]
[350322940,1737793849517,-500.0,0.00019945,2]
[350322941,1737793849527,-1168.12,0.00019945,2]
[350322942,1737793849538,-336.132456,0.00019945,2]
[350322943,1737793849548,-500.0,0.00019945,2]
[350322944,1737793849557,-500.0,0.00019945,2]
[350322945,1737793849567,-500.0,0.00019945,2]
[350322946,1737793849576,-500.0,0.00019945,2]
[350322947,1737793849585,-498.192715,0.00019945,2]
[350322948,1737793849595,-739.17,0.00019945,2]
[350322949,1737793849604,-1292.75,0.00019945,2]
[350322950,1737793849614,-500.0,0.00019945,2]
[350322951,1737793849623,-948.33,0.00019945,2]
[350322952,1737793849633,-1171.25,0.00019945,2]
[350322953,1737793849643,-500.0,0.00019945,2]
[350322954,1737793849653,-1234.34,0.00019945,2]
[350322955,1737793849662,-500.0,0.00019945,2]
[350322956,1737793849671,-500.0,0.00019945,2]
[350322957,1737793849680,-500.0,0.00019945,2]
[350322958,1737793849690,-500.0,0.00019945,2]
[350322959,1737793849699,-156.873209,0.00019945,2]
[350322960,1737793849708,-500.0,0.00019945,2]
[350322961,1737793849719,-778.87,0.00019945,2]
[350322962,1737793849730,-500.0,0.00019945,2]
[350322963,1737793849739,-722.27,0.00019945,2]
[350322964,1737793849748,-166.15062,0.00019945,2]
[350322965,1737793849757,-1398.0,0.00019945,2]
[350322966,1737793849767,-1004.94,0.00019945,2]
[350322967,1737793849777,-307.759024,0.00019945,2]
[350322968,1737793849787,-2555.36,0.00019945,2]
[350322969,1737793849796,-1005.12,0.00019945,2]
[350322970,1737793849807,-872.67,0.00019947,2]
[350322971,1737793849816,-627.58,0.00019947,2]
[350322972,1737793849826,-500.0,0.00019947,2]
[350322973,1737793849835,-769.26,0.00019947,2]
[350322974,1737793849845,-680.05,0.00019947,2]
[350322975,1737793849855,-1210.79,0.00019947,2]
[350322976,1737793849865,-500.0,0.00019947,2]
[350322977,1737793849875,-500.0,0.00019947,2]
[350322978,1737793849884,-910.41,0.00019947,2]
[350322979,1737793849894,-596.65,0.00019947,2]
[350322980,1737793849903,-500.0,0.00019947,2]
[350322981,1737793849912,-1288.79994267,0.00019969,2]
[350322982,1737793849921,-779.17,0.00019972,2]
[350322983,1737793849931,-150.0,0.00019973,4]
[350322984,1737793849940,-150.0,0.00019973,4]
[350322985,1737793849950,-173.15272143,0.00019973,4]
[350322987,1737793849959,-150.0,0.00019973,4]
[350322988,1737793849968,-150.17856381,0.00019973,4]
[350322989,1737793849977,-150.29206,0.00019973,4]
[350322990,1737793849987,-150.0,0.00019973,4]
[350322991,1737793849996,-150.0,0.00019973,4]
[350322992,1737793850006,-17638.0,0.00019973,2]
[350322993,1737793850015,-159236.0,0.00019973,2]
[350322994,1737793850026,-500.74795357,0.00019973,2]
[350322995,1737793850035,-543.18342147,0.00019973,2]
[350322996,1737793850045,-6443.0,0.00019973,2]
[350322997,1737793850055,-803.0,0.00019973,2]
[350322998,1737793850064,-500.77087357,0.00019973,2]
[350322999,1737793850074,-279.935665,0.00019973,2]
[350323000,1737793850083,-279.935665,0.00019973,2]
[350323001,1737793850092,-10849.601815,0.00019974,2]
[350323002,1737793850101,-2075.6665365,0.00019974,2]
[350323003,1737793850110,-2955.2220809,0.00019974,2]
[350323004,1737793850120,-8362.2009597,0.00019974,2]
[350323005,1737793850129,-150.0,0.00019976,2]
[350323006,1737793850139,-500.0,0.00019981,2]
[350323007,1737793850148,-841.36,0.00019981,2]
[350323008,1737793850157,-947.22,0.00019981,2]
[350323009,1737793850167,-849.7,0.00019981,2]
[350323010,1737793850176,-500.0,0.00019981,2]
[350323011,1737793850186,-1522.2,0.00019981,2]
[350323012,1737793850195,-500.0,0.00019981,2]
[350323013,1737793850204,-500.0,0.00019981,2]
[350323014,1737793850214,-1151.59,0.00019981,2]
[350323015,1737793850223,-500.0,0.00019981,2]
[350323016,1737793850232,-1773.75,0.00019981,2]
[350323017,1737793850242,-953.36,0.00019981,2]
[350323018,1737793850251,-500.0,0.00019982,2]
[350323019,1737793850260,-500.0,0.00019982,2]
[350323020,1737793850271,-500.0,0.00019982,2]
[350323021,1737793850280,-500.0,0.00019982,2]
[350323022,1737793850290,-500.0,0.00019982,2]
[350323023,1737793850299,-500.0,0.00019982,2]
[350323024,1737793850309,-500.0,0.00019982,2]
[350323025,1737793850318,-500.0,0.00019982,2]
[350323026,1737793850327,-500.0,0.00019982,2]
[350323027,1737793850337,-500.0,0.00019982,2]
[350323028,1737793850346,-500.0,0.00019982,2]
[350323029,1737793850357,-500.0,0.00019982,2]
[350323030,1737793850367,-500.0,0.00019982,2]
[350323031,1737793850376,-500.0,0.00019982,2]
[350323032,1737793850385,-500.0,0.00019982,2]
[350323033,1737793850397,-500.0,0.00019982,2]
[350323034,1737793850408,-500.0,0.00019982,2]
[350323035,1737793850417,-500.0,0.00019982,2]
[350323036,1737793850427,-500.0,0.00019982,2]
[350323037,1737793850437,-500.0,0.00019982,2]
[350323038,1737793850446,-500.0,0.00019982,2]
[350323039,1737793850456,-500.0,0.00019982,2]
[350323040,1737793850466,-500.0,0.00019982,2]
[350323041,1737793850475,-500.0,0.00019982,2]
[350323042,1737793850487,-500.0,0.00019982,2]
[350323043,1737793850497,-604.54,0.00019982,2]
[350323044,1737793850507,-500.0,0.00019982,2]
[350323045,1737793850518,-500.0,0.00019982,2]
[350323046,1737793850527,-500.0,0.00019982,2]
[350323047,1737793850536,-500.0,0.00019982,2]
[350323048,1737793850545,-500.0,0.00019982,2]
[350323049,1737793850555,-500.0,0.00019982,2]
[350323050,1737793850564,-500.0,0.00019982,2]
[350323051,1737793850574,-765.05,0.00019982,2]
[350323052,1737793850584,-500.0,0.00019982,2]
[350323053,1737793850593,-500.0,0.00019982,2]
[350323054,1737793850602,-500.0,0.00019982,2]
[350323055,1737793850612,-500.0,0.00019982,2]
[350323056,1737793850621,-500.0,0.00019982,2]
[350323057,1737793850631,-500.0,0.00019982,2]
[350323058,1737793850640,-500.0,0.00019982,2]
[350323059,1737793850650,-500.0,0.00019982,2]
[350323060,1737793850659,-500.0,0.00019982,2]
[350323061,1737793850668,-623.66,0.00019982,2]
[350323062,1737793850677,-500.0,0.00019982,2]
[350323063,1737793850686,-500.0,0.00019982,2]
[350323064,1737793850696,-500.0,0.00019982,2]
[350323065,1737793850705,-383.17,0.00019982,2]
[350323066,1737793850715,-500.0,0.00019982,2]
[350323067,1737793850724,-500.0,0.00019982,2]
[350323068,1737793850733,-500.0,0.00019982,2]
[350323069,1737793850743,-500.0,0.00019982,2]
[350323070,1737793850752,-999.0,0.00019982,2]
[350323071,1737793850762,-390.71397262,0.00019982,2]
[350323072,1737793850772,-1971.43,0.00019982,2]
[350323073,1737793850781,-500.0,0.00019982,2]
[350323074,1737793850791,-500.0,0.00019982,2]
[350323075,1737793850801,-500.0,0.00019982,2]
[350323076,1737793850810,-500.0,0.00019982,2]
[350323077,1737793850820,-500.0,0.00019982,2]
[350323078,1737793850829,-1188.68,0.00019982,2]
[350323079,1737793850839,-500.0,0.00019982,2]
[350323080,1737793850849,-500.0,0.00019982,2]
[350323081,1737793850858,-500.0,0.00019982,2]
[350323082,1737793850868,-536.11,0.00019982,2]
[350323083,1737793850877,-500.0,0.00019982,2]
[350323084,1737793850887,-1128.49,0.00019982,2]
[350323085,1737793850896,-500.0,0.00019982,2]
[350323086,1737793850906,-500.0,0.00019982,2]
[350323087,1737793850916,-500.0,0.00019982,2]
[350323088,1737793850926,-1000.0,0.00019982,2]
[350323089,1737793850935,-857.04,0.00019982,2]
[350323090,1737793850945,-500.0,0.00019982,2]
[350323091,1737793850955,-500.0,0.00019982,2]
[350323092,1737793850966,-1553.92,0.00019982,2]
[350323093,1737793850975,-500.0,0.00019982,2]
[350323094,1737793850984,-8765.44674253,0.00019986,2]
[350323095,1737793851125,-169.51945807,0.00019986,2]
[350323096,1737793851135,-1709.3724418,0.00019986,2]
[350323097,1737793851144,-2433.7123019,0.00019986,2]
[350323098,1737793851153,-5263.86882149,0.00019986,2]
[350323099,1737793851164,-1622.64961591,0.00019986,2]
[350323100,1737793851177,-55027.8,0.00019986,2]
[350323101,1737793851188,-2855.2557852,0.00019987,3]
[350323102,1737793851199,-500.0,0.00019987,2]
[350323103,1737793851209,-500.0,0.00019987,2]
[350323104,1737793851218,-967.79,0.00019987,2]
[350323105,1737793851228,-279.935665,0.00019987,2]
[350323106,1737793851238,-279.935662,0.00019987,2]
[350323107,1737793851248,-640.74,0.00019987,2]
[350323108,1737793851258,-500.0,0.00019987,2]
[350323109,1737793851268,-500.0,0.00019987,2]
[350323110,1737793851394,-779.17,0.00019987,2]
[350323111,1737793851405,-779.17,0.00019987,2]
[350323112,1737793851415,-779.17,0.00019987,2]
[350323113,1737793851426,-779.17,0.00019987,2]
[350323114,1737793851436,-779.17,0.00019987,2]
[350323115,1737793851446,-779.17,0.00019987,2]
[350323116,1737793851455,-779.17,0.00019987,2]
[350323117,1737793851468,-779.17,0.00019987,2]
[350323118,1737793851479,-779.17,0.00019987,2]
[350323119,1737793851489,-779.17,0.00019987,2]
[350323120,1737793851497,-145613.73557371,0.00019988,2]
[350323121,1737793851786,-512.45,0.00016438,2]
[350323122,1737793851796,-18.24259837,0.00016438,2]
[350323123,1737793851808,-481.75740163,0.00016438,2]
[350323124,1737793851818,-185.62103275,0.00016575,2]
[350323125,1737793851829,-326.82896725,0.00016575,2]
[350323126,1737793851840,-500.0,0.00016575,2]
[350323127,1737793851850,-512.45,0.00016712,2]
[350323128,1737793851859,-500.0,0.00016712,2]
[350323129,1737793851868,-512.45,0.00016849,2]
[350323130,1737793851878,-831.45,0.00019433,2]
[350323131,1737793851887,-115.40503275,0.00019988,2]
[350323132,1737793851909,-107719.03754319,0.00019988,2]
[350323133,1737793851921,-330.16500001,0.00019988,2]
[350323134,1737793851949,-500.0,0.00016438,2]
[350323135,1737793851959,-500.0,0.00016849,2]
[350323136,1737793851968,-831.45,0.0001957,2]
[350323137,1737793851978,-600.56551077,0.00019988,2]
[350323138,1737793851990,-40868.03694241,0.00019988,2]
[350323139,1737793852001,-418.54789703,0.00019988,2]
[350323140,1737793852018,-5214.0,0.00019988,2]
[350323141,1737793852115,-500.0,0.00016575,2]
[350323142,1737793852124,-512.45,0.00016986,2]
[350323143,1737793852133,-500.0,0.00016986,2]
[350323144,1737793852143,-831.45,0.00019707,2]
[350323145,1737793852153,-63.25091,0.00019988,2]
[350323146,1737793852507,-500.0,0.00016712,2]
[350323147,1737793852518,-500.0,0.00016849,2]